[Event "GrandPrix_29.05"]
[Site "Chess.com"]
[Date "2020.05.29"]
[Round "1"]
[White "ZEN-22"]
[Black "DanielDardha2005"]
[Result "1-0"]
[WhiteElo "2307"]
[BlackElo "2093"]
[TimeControl "600+2"]
[EndTime "9:22:47 PDT"]
[Termination "ZEN-22 won by resignation"]

1. e4 {[%clk 0:10:00.7]} 1... c5 {[%clk 0:09:56.2]} 2. b4 {[%clk 0:09:56.5]}
2... cxb4 {[%clk 0:09:54.9]} 3. a3 {[%clk 0:09:56.8]} 3... e5 {[%clk 0:09:35.3]}
4. axb4 {[%clk 0:09:55.1]} 4... Bxb4 {[%clk 0:09:37.2]} 5. c3 {[%clk 0:09:56]}
5... Be7 {[%clk 0:09:37.2]} 6. d4 {[%clk 0:09:55.2]} 6... d6 {[%clk 0:09:37.5]}
7. Nf3 {[%clk 0:09:55.3]} 7... Nc6 {[%clk 0:09:38.3]} 8. Bb5 {[%clk 0:09:52.5]}
8... Bd7 {[%clk 0:09:29.4]} 9. d5 {[%clk 0:09:23.2]} 9... Nb8 {[%clk 0:09:23.9]}
10. Bd3 {[%clk 0:09:13.2]} 10... Nf6 {[%clk 0:09:18.3]} 11. h3 {[%clk
0:09:13.7]} 11... O-O {[%clk 0:09:18.7]} 12. Be3 {[%clk 0:09:14.2]} 12... Bc8
{[%clk 0:09:05]} 13. Nbd2 {[%clk 0:09:11.7]} 13... Nbd7 {[%clk 0:08:59.1]} 14.
O-O {[%clk 0:09:09.5]} 14... Qc7 {[%clk 0:08:59.3]} 15. c4 {[%clk 0:09:06.2]}
15... b6 {[%clk 0:08:59.1]} 16. Re1 {[%clk 0:08:59.5]} 16... Bb7 {[%clk
0:08:57.1]} 17. Nb3 {[%clk 0:08:41.3]} 17... Rfc8 {[%clk 0:08:50.2]} 18. Nfd2
{[%clk 0:08:37.9]} 18... g6 {[%clk 0:08:34]} 19. g3 {[%clk 0:08:29.2]} 19... a5
{[%clk 0:08:04.2]} 20. Ra4 {[%clk 0:08:02.1]} 20... Nh5 {[%clk 0:07:44.3]} 21.
Kg2 {[%clk 0:07:57.4]} 21... Qd8 {[%clk 0:07:40.4]} 22. Nf3 {[%clk 0:07:24.4]}
22... Ng7 {[%clk 0:07:36.2]} 23. Qd2 {[%clk 0:07:20.4]} 23... f5 {[%clk
0:07:19.6]} 24. Rb1 {[%clk 0:06:42.8]} 24... Rab8 {[%clk 0:06:49.1]} 25. Bg5
{[%clk 0:06:40.3]} 25... Bxg5 {[%clk 0:06:47.4]} 26. Nxg5 {[%clk 0:06:40.7]}
26... Qe7 {[%clk 0:06:39.1]} 27. Ra2 {[%clk 0:06:36.3]} 27... Rf8 {[%clk
0:06:34.7]} 28. Rab2 {[%clk 0:06:34.3]} 28... f4 {[%clk 0:06:28.6]} 29. Nf3
{[%clk 0:06:23.7]} 29... Rf7 {[%clk 0:05:58.5]} 30. g4 {[%clk 0:06:20.2]} 30...
Rff8 {[%clk 0:05:48.7]} 31. Nxa5 {[%clk 0:06:17.3]} 31... bxa5 {[%clk
0:05:36.3]} 32. Rxb7 {[%clk 0:06:16.7]} 32... Rxb7 {[%clk 0:05:38.2]} 33. Rxb7
{[%clk 0:06:17.5]} 33... Qd8 {[%clk 0:05:39.9]} 34. Ra7 {[%clk 0:06:10.2]} 34...
Nc5 {[%clk 0:05:35.1]} 35. Bc2 {[%clk 0:06:10.6]} 35... a4 {[%clk 0:05:28.5]}
36. Bxa4 {[%clk 0:06:09.8]} 36... Nxe4 {[%clk 0:05:16]} 37. Qa5 {[%clk
0:05:51.5]} 37... Qb8 {[%clk 0:04:12.8]} 38. Qc7 {[%clk 0:05:46.2]} 38... Qxc7
{[%clk 0:04:13.9]} 39. Rxc7 {[%clk 0:05:46.1]} 39... Ra8 {[%clk 0:04:13.2]} 40.
Bc2 {[%clk 0:05:34.4]} 40... Nc5 {[%clk 0:04:09.2]} 41. Nxe5 {[%clk 0:05:24.7]}
41... Na6 {[%clk 0:04:10.2]} 42. Re7 {[%clk 0:05:19.1]} 42... dxe5 {[%clk
0:04:07.9]} 43. Ba4 {[%clk 0:04:35.5]} 43... Nc5 {[%clk 0:03:58.7]} 44. Bc6
{[%clk 0:04:35.2]} 44... Rd8 {[%clk 0:03:51.8]} 45. Rxe5 {[%clk 0:04:33.9]}
45... Kf7 {[%clk 0:03:49.7]} 46. Kf3 {[%clk 0:04:27.9]} 46... Nd3 {[%clk
0:03:12.9]} 47. Re2 {[%clk 0:04:22.8]} 47... Kf6 {[%clk 0:03:12.5]} 48. Ke4
{[%clk 0:04:21.3]} 48... Ne5 {[%clk 0:02:36.9]} 49. Bb5 {[%clk 0:04:17.8]} 49...
Ne8 {[%clk 0:02:37.6]} 50. Kxf4 {[%clk 0:04:10.9]} 50... g5+ {[%clk 0:02:36.7]}
51. Ke4 {[%clk 0:03:48.9]} 51... Nd6+ {[%clk 0:02:36.7]} 52. Kd4 {[%clk
0:03:49.9]} 52... Nf3+ {[%clk 0:02:16]} 53. Kc5 {[%clk 0:03:45.3]} 53... Nxb5
{[%clk 0:02:12.4]} 54. cxb5 {[%clk 0:03:43.9]} 54... Rc8+ {[%clk 0:01:50.6]} 55.
Kb4 {[%clk 0:03:41.5]} 55... Ne5 {[%clk 0:01:35.6]} 56. b6 {[%clk 0:03:35.7]}
56... Rc1 {[%clk 0:01:25.1]} 57. Kb5 {[%clk 0:03:35.8]} 57... Rb1+ {[%clk
0:01:24.4]} 58. Ka6 {[%clk 0:03:36.3]} 58... Nd7 {[%clk 0:01:21]} 59. Re6+
{[%clk 0:03:36.6]} 59... Kf7 {[%clk 0:01:22.6]} 60. Rc6 {[%clk 0:03:34.9]} 60...
Ke7 {[%clk 0:01:01.1]} 61. Rh6 {[%clk 0:03:29.2]} 61... Nc5+ {[%clk 0:00:56.7]}
62. Ka7 {[%clk 0:03:27.9]} 62... Ra1+ {[%clk 0:00:51.9]} 63. Kb8 {[%clk
0:03:26.5]} 63... Rb1 {[%clk 0:00:37.2]} 64. Kc8 {[%clk 0:03:23.3]} 64... Rb2
{[%clk 0:00:17.1]} 65. d6+ {[%clk 0:03:14.7]} 65... Ke8 {[%clk 0:00:15.3]} 66.
d7+ {[%clk 0:03:13.8]} 66... Nxd7 {[%clk 0:00:11.6]} 67. Re6+ {[%clk 0:03:15.1]}
67... Kf7 {[%clk 0:00:12]} 68. Kxd7 {[%clk 0:03:17]} 68... Rd2+ {[%clk
0:00:12.1]} 69. Rd6 {[%clk 0:03:17.8]} 69... Rxf2 {[%clk 0:00:14]} 70. b7 {[%clk
0:03:18.1]} 70... Rb2 {[%clk 0:00:14.8]} 71. Kc7 {[%clk 0:03:19]} 71... Rc2+
{[%clk 0:00:16.2]} 72. Rc6 {[%clk 0:03:20]} 1-0

[Event "GrandPrix_29.05"]
[Site "Chess.com"]
[Date "2020.05.29"]
[Round "1"]
[White "Chepaschess"]
[Black "KuzubovYuriy"]
[Result "1/2-1/2"]
[WhiteElo "2554"]
[BlackElo "2346"]
[TimeControl "600+2"]
[EndTime "9:22:51 PDT"]
[Termination "Game drawn by repetition"]

1. Nf3 {[%clk 0:09:58.2]} 1... c5 {[%clk 0:09:49.9]} 2. c4 {[%clk 0:09:55.8]}
2... Nc6 {[%clk 0:09:40.9]} 3. Nc3 {[%clk 0:09:48.7]} 3... Nf6 {[%clk
0:09:41.1]} 4. g3 {[%clk 0:09:44.3]} 4... g6 {[%clk 0:09:34.2]} 5. Bg2 {[%clk
0:09:41.5]} 5... d6 {[%clk 0:09:35]} 6. d4 {[%clk 0:09:41.7]} 6... cxd4 {[%clk
0:09:35]} 7. Nxd4 {[%clk 0:09:43.6]} 7... Bd7 {[%clk 0:09:35.8]} 8. Nc2 {[%clk
0:09:17.9]} 8... Bg7 {[%clk 0:09:23.1]} 9. b3 {[%clk 0:09:09.8]} 9... O-O {[%clk
0:08:22.8]} 10. O-O {[%clk 0:09:02.3]} 10... Qa5 {[%clk 0:07:59.1]} 11. Bd2
{[%clk 0:08:53.2]} 11... Qh5 {[%clk 0:07:44.4]} 12. e4 {[%clk 0:08:53]} 12...
Qxd1 {[%clk 0:07:05.4]} 13. Raxd1 {[%clk 0:08:41.6]} 13... Rfc8 {[%clk
0:07:01.3]} 14. h3 {[%clk 0:08:33.2]} 14... Be8 {[%clk 0:06:38]} 15. Rfe1 {[%clk
0:08:17.1]} 15... Nd7 {[%clk 0:06:35.7]} 16. Nd5 {[%clk 0:08:07]} 16... Kf8
{[%clk 0:06:33]} 17. Be3 {[%clk 0:07:17.3]} 17... e6 {[%clk 0:05:46.2]} 18. Nf4
{[%clk 0:06:46.8]} 18... Ke7 {[%clk 0:05:39.4]} 19. Nd3 {[%clk 0:06:36]} 19...
b6 {[%clk 0:05:04.9]} 20. Bg5+ {[%clk 0:06:20.8]} 20... Bf6 {[%clk 0:04:53.7]}
21. h4 {[%clk 0:06:05.8]} 21... Rab8 {[%clk 0:04:23.2]} 22. Ne3 {[%clk
0:05:30.6]} 22... Bxg5 {[%clk 0:04:03.2]} 23. hxg5 {[%clk 0:05:30.4]} 23... a5
{[%clk 0:03:59.3]} 24. Nd5+ {[%clk 0:05:20.5]} 24... Kf8 {[%clk 0:03:17]} 25.
Nf6 {[%clk 0:05:20.4]} 25... h5 {[%clk 0:02:47.2]} 26. Nxd7+ {[%clk 0:04:48.3]}
26... Bxd7 {[%clk 0:02:47.7]} 27. e5 {[%clk 0:03:12.1]} 27... dxe5 {[%clk
0:02:28]} 28. Nxe5 {[%clk 0:02:02.4]} 28... Nxe5 {[%clk 0:02:27.1]} 29. Rxe5
{[%clk 0:02:04.3]} 29... Ke7 {[%clk 0:02:23.6]} 30. a4 {[%clk 0:01:43.1]} 30...
Rc5 {[%clk 0:02:10]} 31. f4 {[%clk 0:01:37]} 31... Rd8 {[%clk 0:01:42.6]} 32.
Kf2 {[%clk 0:01:31.6]} 32... Rcc8 {[%clk 0:01:02.9]} 33. Re3 {[%clk 0:01:17]}
33... Bc6 {[%clk 0:00:58.3]} 34. Rxd8 {[%clk 0:01:12.2]} 34... Kxd8 {[%clk
0:01:00.2]} 35. Rd3+ {[%clk 0:01:00.5]} 35... Ke7 {[%clk 0:01:00.1]} 36. Bxc6
{[%clk 0:00:59.2]} 36... Rxc6 {[%clk 0:01:02]} 37. Ke3 {[%clk 0:01:00.7]} 37...
Rc5 {[%clk 0:01:01]} 38. Ke4 {[%clk 0:00:57.7]} 38... Rf5 {[%clk 0:01:01.4]} 39.
Rd2 {[%clk 0:00:09.5]} 39... Rc5 {[%clk 0:01:00.6]} 40. Rd3 {[%clk 0:00:10.3]}
40... Rf5 {[%clk 0:01:01.2]} 41. Rd2 {[%clk 0:00:10.5]} 41... Rc5 {[%clk
0:01:02.1]} 42. Rd3 {[%clk 0:00:10.7]} 1/2-1/2

[Event "GrandPrix_29.05"]
[Site "Chess.com"]
[Date "2020.05.29"]
[Round "1"]
[White "Vnebo"]
[Black "pheonixking2000"]
[Result "0-1"]
[WhiteElo "2099"]
[BlackElo "1960"]
[TimeControl "600+2"]
[EndTime "9:22:53 PDT"]
[Termination "pheonixking2000 won by resignation"]

1. e4 {[%clk 0:09:53.7]} 1... c6 {[%clk 0:09:49.9]} 2. d4 {[%clk 0:09:35.4]}
2... d5 {[%clk 0:09:49.5]} 3. Nc3 {[%clk 0:09:35]} 3... dxe4 {[%clk 0:09:49.4]}
4. Nxe4 {[%clk 0:09:36.9]} 4... Bf5 {[%clk 0:09:47.8]} 5. Ng3 {[%clk 0:09:36.3]}
5... Bg6 {[%clk 0:09:49]} 6. Nf3 {[%clk 0:09:34.2]} 6... Nd7 {[%clk 0:09:32.9]}
7. Bd3 {[%clk 0:09:33.9]} 7... Ngf6 {[%clk 0:09:23.1]} 8. O-O {[%clk 0:09:32.2]}
8... e6 {[%clk 0:09:22.7]} 9. b3 {[%clk 0:09:30.2]} 9... Be7 {[%clk 0:08:58.6]}
10. Bb2 {[%clk 0:09:28.5]} 10... O-O {[%clk 0:08:59.2]} 11. Bxg6 {[%clk
0:09:26.5]} 11... hxg6 {[%clk 0:08:58.8]} 12. c4 {[%clk 0:09:26.6]} 12... Qc7
{[%clk 0:08:58.8]} 13. Qe2 {[%clk 0:09:17]} 13... Rad8 {[%clk 0:08:53.3]} 14.
Rad1 {[%clk 0:09:09.1]} 14... Rfe8 {[%clk 0:08:53.1]} 15. Ne4 {[%clk 0:08:54.1]}
15... Qa5 {[%clk 0:08:42.1]} 16. Bc3 {[%clk 0:08:40.2]} 16... Qa3 {[%clk
0:08:00.8]} 17. Neg5 {[%clk 0:07:10.8]} 17... b5 {[%clk 0:06:52.4]} 18. Nxf7
{[%clk 0:06:11.5]} 18... Kxf7 {[%clk 0:06:49.1]} 19. Ng5+ {[%clk 0:06:06.7]}
19... Kg8 {[%clk 0:06:45.6]} 20. Qxe6+ {[%clk 0:06:00.8]} 20... Kh8 {[%clk
0:06:47.1]} 21. Nf7+ {[%clk 0:05:31.8]} 21... Kh7 {[%clk 0:06:46.1]} 22. Ng5+
{[%clk 0:05:15.2]} 22... Kh8 {[%clk 0:06:36.6]} 23. Nf7+ {[%clk 0:04:07]} 23...
Kh7 {[%clk 0:06:35.9]} 24. Nxd8 {[%clk 0:04:05.7]} 24... Bxd8 {[%clk 0:06:32.5]}
25. Qxc6 {[%clk 0:04:03.6]} 25... bxc4 {[%clk 0:06:32.7]} 26. Qxc4 {[%clk
0:03:25.9]} 26... Nb6 {[%clk 0:06:17.6]} 27. Qd3 {[%clk 0:03:17.7]} 27... Qxa2
{[%clk 0:05:57.8]} 28. Bd2 {[%clk 0:02:19.3]} 28... Qa3 {[%clk 0:04:50.1]} 29.
Ra1 {[%clk 0:02:16.5]} 29... Qe7 {[%clk 0:04:46.2]} 30. Rfe1 {[%clk 0:02:15.1]}
30... Qf7 {[%clk 0:04:45.9]} 31. Rxe8 {[%clk 0:02:12]} 31... Nxe8 {[%clk
0:04:47.8]} 32. Ba5 {[%clk 0:01:21.2]} 32... Nf6 {[%clk 0:04:01.7]} 33. Re1
{[%clk 0:01:10.6]} 33... Qd5 {[%clk 0:03:39.1]} 34. Qh3+ {[%clk 0:01:03.7]}
34... Kg8 {[%clk 0:03:39.7]} 35. Qe6+ {[%clk 0:00:58.9]} 35... Qxe6 {[%clk
0:03:33.4]} 36. Rxe6 {[%clk 0:01:00.8]} 36... Kf7 {[%clk 0:03:34.2]} 37. Re1
{[%clk 0:01:00]} 37... Nfd5 {[%clk 0:03:31.6]} 38. Kf1 {[%clk 0:00:58]} 38...
Bf6 {[%clk 0:03:32.5]} 39. Bxb6 {[%clk 0:00:56.1]} 39... axb6 {[%clk 0:03:14.5]}
40. Rc1 {[%clk 0:00:28.8]} 40... Ke6 {[%clk 0:03:11.1]} 41. Rc4 {[%clk
0:00:19.7]} 41... Kd6 {[%clk 0:03:04.5]} 42. Ke2 {[%clk 0:00:12.7]} 42... b5
{[%clk 0:03:04.2]} 43. Rc8 {[%clk 0:00:13]} 43... Bxd4 {[%clk 0:03:00.5]} 44.
Kd3 {[%clk 0:00:13.2]} 44... Bxf2 {[%clk 0:02:50.6]} 45. Rg8 {[%clk 0:00:09.1]}
45... Nf4+ {[%clk 0:02:51.8]} 46. Ke4 {[%clk 0:00:08.3]} 46... Ne6 {[%clk
0:02:53.3]} 47. Rb8 {[%clk 0:00:07.4]} 47... Kc6 {[%clk 0:02:41.4]} 48. Re8
{[%clk 0:00:05.9]} 48... Nc5+ {[%clk 0:02:40.6]} 49. Kf3 {[%clk 0:00:06.8]}
49... Bd4 {[%clk 0:02:42]} 50. b4 {[%clk 0:00:05.8]} 50... Nd7 {[%clk 0:02:29]}
51. Re6+ {[%clk 0:00:05.5]} 51... Kd5 {[%clk 0:02:29.2]} 52. Ra6 {[%clk
0:00:05.2]} 52... Bf6 {[%clk 0:02:25.7]} 53. Ra7 {[%clk 0:00:04.3]} 53... Ne5+
{[%clk 0:02:24.5]} 54. Ke3 {[%clk 0:00:03.1]} 54... Kc4 {[%clk 0:02:26]} 55. Ke4
{[%clk 0:00:03.8]} 55... Kxb4 {[%clk 0:02:24.2]} 56. Ra1 {[%clk 0:00:04.3]}
56... Nc4 {[%clk 0:02:22.2]} 57. Rb1+ {[%clk 0:00:04.8]} 57... Kc5 {[%clk
0:02:23.6]} 58. g3 {[%clk 0:00:04.8]} 58... Nd2+ {[%clk 0:02:24.4]} 0-1

[Event "GrandPrix_29.05"]
[Site "Chess.com"]
[Date "2020.05.29"]
[Round "1"]
[White "BakuTurk"]
[Black "PaulfromSPb"]
[Result "1/2-1/2"]
[WhiteElo "1699"]
[BlackElo "2218"]
[TimeControl "600+2"]
[EndTime "9:22:57 PDT"]
[Termination "Game drawn by repetition"]

1. d4 {[%clk 0:09:58.4]} 1... Nf6 {[%clk 0:09:59.3]} 2. Nf3 {[%clk 0:09:57.2]}
2... e6 {[%clk 0:09:56.8]} 3. Bg5 {[%clk 0:09:57.1]} 3... c5 {[%clk 0:09:56.9]}
4. e3 {[%clk 0:09:57.3]} 4... b6 {[%clk 0:09:53.6]} 5. d5 {[%clk 0:09:57.8]}
5... exd5 {[%clk 0:09:51.6]} 6. Nc3 {[%clk 0:09:58.3]} 6... Bb7 {[%clk
0:09:46.1]} 7. Nxd5 {[%clk 0:09:58.7]} 7... Bxd5 {[%clk 0:09:46.6]} 8. Bxf6
{[%clk 0:09:59.7]} 8... Qxf6 {[%clk 0:09:47.3]} 9. Qxd5 {[%clk 0:10:00.6]} 9...
Nc6 {[%clk 0:09:37.6]} 10. c3 {[%clk 0:09:50.1]} 10... Be7 {[%clk 0:09:34.3]}
11. Bc4 {[%clk 0:09:28.1]} 11... Rd8 {[%clk 0:09:01.7]} 12. O-O {[%clk
0:09:12.4]} 12... O-O {[%clk 0:09:00.6]} 13. Rad1 {[%clk 0:09:11.7]} 13... Rfe8
{[%clk 0:08:24.1]} 14. a3 {[%clk 0:08:51.7]} 14... Bf8 {[%clk 0:08:14.3]} 15.
Rd2 {[%clk 0:08:13.6]} 15... h6 {[%clk 0:07:43.3]} 16. Rfd1 {[%clk 0:08:11.8]}
16... g6 {[%clk 0:07:38.1]} 17. Bb5 {[%clk 0:07:36.2]} 17... Re6 {[%clk
0:07:09.4]} 18. Bxc6 {[%clk 0:06:27.9]} 18... Rxc6 {[%clk 0:07:06.4]} 19. Qe5
{[%clk 0:06:29]} 19... Qxe5 {[%clk 0:05:19.2]} 20. Nxe5 {[%clk 0:06:28.7]} 20...
Re6 {[%clk 0:04:50.9]} 21. Nxd7 {[%clk 0:06:14.2]} 21... Be7 {[%clk 0:04:36.2]}
22. Nf6+ {[%clk 0:05:31.6]} 22... Bxf6 {[%clk 0:04:36.9]} 23. Rxd8+ {[%clk
0:05:33.2]} 23... Bxd8 {[%clk 0:04:38.7]} 24. Rxd8+ {[%clk 0:05:34.4]} 24... Kg7
{[%clk 0:04:40.6]} 25. Rd7 {[%clk 0:05:30.3]} 25... Kf6 {[%clk 0:04:34.3]} 26.
Kf1 {[%clk 0:05:29.3]} 26... a6 {[%clk 0:04:28.5]} 27. a4 {[%clk 0:04:57.1]}
27... c4 {[%clk 0:03:40.9]} 28. Ke2 {[%clk 0:03:55.6]} 28... b5 {[%clk
0:03:35.2]} 29. axb5 {[%clk 0:03:11.1]} 29... axb5 {[%clk 0:03:37.1]} 30. Rb7
{[%clk 0:03:12.3]} 30... Re5 {[%clk 0:03:37]} 31. f4 {[%clk 0:03:10.7]} 31...
Rc5 {[%clk 0:03:27.4]} 32. e4 {[%clk 0:02:52.4]} 32... g5 {[%clk 0:03:16.9]} 33.
Rb6+ {[%clk 0:02:41.6]} 33... Kg7 {[%clk 0:03:12]} 34. f5 {[%clk 0:02:28.1]}
34... f6 {[%clk 0:02:21.9]} 35. Ke3 {[%clk 0:02:25.2]} 35... Kf7 {[%clk
0:02:21.5]} 36. Rb7+ {[%clk 0:02:22.7]} 36... Ke8 {[%clk 0:02:15.5]} 37. Kd4
{[%clk 0:02:23.2]} 37... Re5 {[%clk 0:02:06.8]} 38. g4 {[%clk 0:02:23]} 38...
Kf8 {[%clk 0:02:01.4]} 39. h3 {[%clk 0:02:11.5]} 39... Kg8 {[%clk 0:01:52.8]}
40. Rb6 {[%clk 0:01:46.3]} 40... Kf7 {[%clk 0:01:48.6]} 41. Rb8 {[%clk
0:01:36.4]} 41... Kg7 {[%clk 0:01:39.3]} 42. Rb7+ {[%clk 0:01:07]} 42... Kg8
{[%clk 0:01:38.7]} 43. Rd7 {[%clk 0:01:08.5]} 43... Re8 {[%clk 0:01:36.4]} 44.
Rd5 {[%clk 0:01:02.6]} 44... Rb8 {[%clk 0:01:36.7]} 45. Kc5 {[%clk 0:00:55.6]}
45... Re8 {[%clk 0:01:32.9]} 46. Kd4 {[%clk 0:00:44.9]} 46... Rb8 {[%clk
0:01:33.1]} 47. Rd7 {[%clk 0:00:46.6]} 47... Re8 {[%clk 0:01:17]} 48. Rd5 {[%clk
0:00:30.1]} 1/2-1/2

[Event "GrandPrix_29.05"]
[Site "Chess.com"]
[Date "2020.05.29"]
[Round "1"]
[White "SavelijTartakover"]
[Black "KacperKacprzak"]
[Result "1-0"]
[WhiteElo "2506"]
[BlackElo "2080"]
[TimeControl "600+2"]
[EndTime "9:22:59 PDT"]
[Termination "SavelijTartakover won by resignation"]

1. d4 {[%clk 0:09:58.9]} 1... Nf6 {[%clk 0:09:59.9]} 2. c4 {[%clk 0:09:57.4]}
2... d6 {[%clk 0:09:59.4]} 3. Nc3 {[%clk 0:09:51.7]} 3... Nbd7 {[%clk
0:09:59.6]} 4. Nf3 {[%clk 0:09:48.4]} 4... g6 {[%clk 0:09:59.3]} 5. e4 {[%clk
0:09:47.6]} 5... e5 {[%clk 0:09:55.4]} 6. Be2 {[%clk 0:09:46.4]} 6... Bg7 {[%clk
0:09:55.2]} 7. O-O {[%clk 0:09:47]} 7... O-O {[%clk 0:09:54.9]} 8. Qc2 {[%clk
0:09:46.9]} 8... Re8 {[%clk 0:09:43.1]} 9. Rd1 {[%clk 0:09:45.7]} 9... exd4
{[%clk 0:09:34]} 10. Nxd4 {[%clk 0:09:45.6]} 10... Nc5 {[%clk 0:09:34.8]} 11. f3
{[%clk 0:09:44.3]} 11... a5 {[%clk 0:09:32.9]} 12. Bg5 {[%clk 0:09:39.2]} 12...
h6 {[%clk 0:09:11.3]} 13. Bh4 {[%clk 0:09:39.3]} 13... Bd7 {[%clk 0:08:50.2]}
14. Rac1 {[%clk 0:09:30.4]} 14... g5 {[%clk 0:08:31.9]} 15. Bf2 {[%clk 0:09:27]}
15... Nh5 {[%clk 0:08:27.8]} 16. Bf1 {[%clk 0:09:22.8]} 16... Be5 {[%clk
0:07:49]} 17. g3 {[%clk 0:09:08.7]} 17... c6 {[%clk 0:07:25.2]} 18. b3 {[%clk
0:08:51.6]} 18... Qf6 {[%clk 0:07:25.1]} 19. Bg2 {[%clk 0:08:43.4]} 19... Rad8
{[%clk 0:07:09.5]} 20. Rd2 {[%clk 0:08:40.3]} 20... Ng7 {[%clk 0:05:55.2]} 21.
Rcd1 {[%clk 0:08:26.7]} 21... h5 {[%clk 0:05:52.3]} 22. Nce2 {[%clk 0:07:36]}
22... h4 {[%clk 0:04:31.7]} 23. Be3 {[%clk 0:06:25.2]} 23... hxg3 {[%clk
0:03:57.8]} 24. hxg3 {[%clk 0:06:24]} 24... Nce6 {[%clk 0:03:47.9]} 25. g4
{[%clk 0:05:15.8]} 25... Nf4 {[%clk 0:03:15.5]} 26. Nxf4 {[%clk 0:05:03.9]}
26... Bxf4 {[%clk 0:03:09.5]} 27. Bxf4 {[%clk 0:04:53.9]} 27... Qxf4 {[%clk
0:03:06.3]} 28. Qc3 {[%clk 0:04:53]} 28... Qe5 {[%clk 0:01:32]} 29. Ne2 {[%clk
0:04:50.9]} 29... Qxc3 {[%clk 0:01:11.9]} 30. Nxc3 {[%clk 0:04:50.1]} 30... Be6
{[%clk 0:01:08.4]} 31. Rxd6 {[%clk 0:04:23.5]} 31... Rxd6 {[%clk 0:01:10.3]} 32.
Rxd6 {[%clk 0:04:24.4]} 32... Rb8 {[%clk 0:01:10.6]} 33. Bf1 {[%clk 0:04:15.3]}
33... Ne8 {[%clk 0:01:10.1]} 34. Rd2 {[%clk 0:04:15.5]} 34... Nc7 {[%clk
0:01:09.5]} 35. Kf2 {[%clk 0:04:06.8]} 35... b5 {[%clk 0:01:09]} 36. cxb5 {[%clk
0:04:03.7]} 36... cxb5 {[%clk 0:01:10.9]} 37. Nd5 {[%clk 0:03:50.5]} 37... Nxd5
{[%clk 0:00:53]} 38. exd5 {[%clk 0:03:49.1]} 38... Bd7 {[%clk 0:00:54.5]} 39.
Rc2 {[%clk 0:03:39.6]} 39... Rb7 {[%clk 0:00:54.1]} 40. Ke3 {[%clk 0:03:17]}
40... b4 {[%clk 0:00:49.5]} 41. Kd4 {[%clk 0:03:08.1]} 41... f6 {[%clk
0:00:41.2]} 42. Bc4 {[%clk 0:03:01.8]} 42... Kf8 {[%clk 0:00:41.9]} 43. Kc5
{[%clk 0:02:49.9]} 43... a4 {[%clk 0:00:39.4]} 44. Kd6 {[%clk 0:02:47.3]} 44...
axb3 {[%clk 0:00:38.7]} 45. Bxb3 {[%clk 0:02:46.1]} 45... f5 {[%clk 0:00:32.5]}
46. Rc7 {[%clk 0:02:32.6]} 46... Rxc7 {[%clk 0:00:32.8]} 47. Kxc7 {[%clk
0:02:34.5]} 47... fxg4 {[%clk 0:00:34.4]} 48. fxg4 {[%clk 0:02:20]} 48... Bxg4
{[%clk 0:00:36.3]} 49. d6 {[%clk 0:02:20.4]} 49... Ke8 {[%clk 0:00:30.1]} 50.
Ba4+ {[%clk 0:02:17.4]} 50... Kf7 {[%clk 0:00:31.5]} 51. d7 {[%clk 0:01:59.4]}
51... Bxd7 {[%clk 0:00:32.7]} 52. Bxd7 {[%clk 0:02:01.3]} 52... Ke7 {[%clk
0:00:33.3]} 53. Kc6 {[%clk 0:01:59.3]} 53... Kd8 {[%clk 0:00:28.3]} 54. Bg4
{[%clk 0:01:58.9]} 54... Ke7 {[%clk 0:00:29.4]} 55. Kc5 {[%clk 0:01:59.2]} 55...
Kd8 {[%clk 0:00:30.4]} 56. Kxb4 {[%clk 0:01:59.2]} 56... Kc7 {[%clk 0:00:32.3]}
57. Kb5 {[%clk 0:01:59.9]} 57... Kb7 {[%clk 0:00:34.2]} 58. a4 {[%clk
0:02:00.6]} 58... Ka8 {[%clk 0:00:36.1]} 59. Kb6 {[%clk 0:02:00.6]} 1-0

[Event "GrandPrix_29.05"]
[Site "Chess.com"]
[Date "2020.05.29"]
[Round "1"]
[White "Aliakbarov_Anar"]
[Black "Evgeny81"]
[Result "0-1"]
[WhiteElo "2122"]
[BlackElo "2548"]
[TimeControl "600+2"]
[EndTime "9:23:00 PDT"]
[Termination "Evgeny81 won by resignation"]

1. d4 {[%clk 0:09:56.7]} 1... d5 {[%clk 0:09:59.5]} 2. c4 {[%clk 0:09:43.4]}
2... dxc4 {[%clk 0:09:59.6]} 3. Nf3 {[%clk 0:09:41.2]} 3... Nf6 {[%clk
0:09:59.4]} 4. e3 {[%clk 0:09:40.5]} 4... b5 {[%clk 0:09:54.4]} 5. a4 {[%clk
0:09:13.7]} 5... b4 {[%clk 0:09:54.3]} 6. Bxc4 {[%clk 0:09:13]} 6... e6 {[%clk
0:09:55]} 7. O-O {[%clk 0:09:13]} 7... Bb7 {[%clk 0:09:51.7]} 8. Qe2 {[%clk
0:08:29.8]} 8... Be7 {[%clk 0:09:42.6]} 9. Nbd2 {[%clk 0:07:55.1]} 9... O-O
{[%clk 0:08:41.3]} 10. a5 {[%clk 0:06:32.5]} 10... c5 {[%clk 0:08:19.5]} 11. a6
{[%clk 0:06:00.3]} 11... Bd5 {[%clk 0:08:10.3]} 12. e4 {[%clk 0:05:42.7]} 12...
Bxc4 {[%clk 0:08:06.1]} 13. Qxc4 {[%clk 0:05:02.8]} 13... Nbd7 {[%clk 0:07:49]}
14. e5 {[%clk 0:04:43.4]} 14... Nd5 {[%clk 0:07:45.8]} 15. Ne4 {[%clk
0:04:35.5]} 15... cxd4 {[%clk 0:07:36.7]} 16. Qxd4 {[%clk 0:04:24.3]} 16... Qb6
{[%clk 0:06:39.5]} 17. Qd3 {[%clk 0:03:58.3]} 17... h6 {[%clk 0:06:01.8]} 18.
Ng3 {[%clk 0:02:29]} 18... b3 {[%clk 0:04:27.4]} 19. Bxh6 {[%clk 0:00:30.9]}
19... gxh6 {[%clk 0:04:12.5]} 20. Qd2 {[%clk 0:00:30.9]} 20... Qb4 {[%clk
0:03:48.2]} 21. Qxh6 {[%clk 0:00:29.6]} 21... Qg4 {[%clk 0:03:48]} 22. h3 {[%clk
0:00:10.7]} 22... Qg7 {[%clk 0:03:19.5]} 23. Qd2 {[%clk 0:00:11.4]} 23... Bb4
{[%clk 0:02:48.9]} 24. Qd3 {[%clk 0:00:10.9]} 24... Nxe5 {[%clk 0:02:43.7]} 25.
Nxe5 {[%clk 0:00:11.5]} 25... Qxe5 {[%clk 0:02:45.4]} 26. Qxb3 {[%clk
0:00:11.8]} 26... Rab8 {[%clk 0:02:27.4]} 27. Qf3 {[%clk 0:00:12.8]} 27... Qf6
{[%clk 0:02:20.5]} 28. Qg4+ {[%clk 0:00:12.3]} 28... Qg6 {[%clk 0:02:20.2]} 29.
Qf3 {[%clk 0:00:12.5]} 29... Rfc8 {[%clk 0:02:11.3]} 30. Rad1 {[%clk 0:00:11.2]}
30... Rc4 {[%clk 0:01:58.6]} 31. Rc1 {[%clk 0:00:03.7]} 31... Rbc8 {[%clk
0:01:55.1]} 32. Rxc4 {[%clk 0:00:04.9]} 32... Rxc4 {[%clk 0:01:56.8]} 33. Rd1
{[%clk 0:00:06.2]} 33... Bc5 {[%clk 0:01:45.1]} 34. Rd2 {[%clk 0:00:07.2]} 34...
Bb6 {[%clk 0:01:05.1]} 35. Kh2 {[%clk 0:00:06.5]} 35... Rf4 {[%clk 0:01:01.8]}
36. Qb3 {[%clk 0:00:05.1]} 36... Rxf2 {[%clk 0:01:00.3]} 37. Rxf2 {[%clk
0:00:05.9]} 37... Bxf2 {[%clk 0:01:01]} 38. Qb8+ {[%clk 0:00:07.4]} 38... Kh7
{[%clk 0:00:59.2]} 39. Ne2 {[%clk 0:00:08]} 39... Bb6 {[%clk 0:00:54.5]} 40. Qe5
{[%clk 0:00:07.9]} 40... Bc7 {[%clk 0:00:55.3]} 0-1